{"text_format":"1","workbook":"xlsx","n_sheets":4,"sheets":["様式第１（申請書　申請者情報) ","書式　申請明細","申請書出力フォーム","プルダウンリスト (WTO)"],"not_rendered":{"charts":0,"images":1,"macros":1,"external_links":0,"defined_names":17,"comments":1,"pivot_tables":0},"unopened":[],"bounds":{"document_bytes":16777216,"sheet_cells":100000,"rows_first":2000,"rows_last":500,"rows_between":2000,"halvings":0,"cell_chars":16384,"cell_head_chars":4096},"cells_cut":0,"cells_raw":0,"read":"whole","date_system":"1900"}

{"sheet":"様式第１（申請書　申請者情報) ","index":0,"n_rows":24,"n_cols":15,"rows_kept":24,"cut":false,"hidden":false,"merged":[]}
[null,null,null,"※青色のセルにのみご記入ください"]
[null,"申請者情報"]
[null,"申請者氏名（名称）"]
[null,"住所"]
[null,"電話番号（ハイフンあり）",null,null,null,null,null,null,null,null,null,null,null,null,"　"]
[null,"代表者名"]
[null,"申請年月日",null,"令和",null,"年",null,"月",null,"日"]
[]
[null,"担当者"]
[null,"組織名"]
[null,"部署名"]
[null,"担当者氏名"]
[null,"住所"]
[null,"電話番号（ハイフンあり）",null,null,null,null,null,null,null,null,null,null,null,null,"　"]
[null,"メールアドレス"]
[]
[null,"送付先情報"]
[null,"郵便番号（ハイフンあり）"]
[null,"住所"]
[null,"組織名"]
[null,"部署名"]
[null,"受取人氏名"]
[null,"電話番号（ハイフンあり）"]
[null,"メールアドレス"]

{"sheet":"書式　申請明細","index":1,"n_rows":24,"n_cols":34,"rows_kept":24,"cut":false,"hidden":false,"merged":[[2,1,3,1],[2,2,3,2],[2,4,3,4],[2,3,3,3],[2,5,2,8],[2,9,3,10],[2,11,3,12],[2,13,3,13],[2,14,3,14],[2,15,3,15],[2,16,2,26],[2,27,2,30],[2,31,3,31],[2,32,3,32],[2,33,3,33]]}
[null,null,null,null,null,null,null,null,null,null,null,null,null,"※青色のセルにのみご記入ください"]
["「その他の乳製品」以外"]
[null,"協定\n(自動入力)","品名","資格\n（無糖れん乳は必須）","関税番号","申請数量",null,null,null,"使用実績",null,"輸入実績",null,"主な使用の\n計画","商品名","原産地","原料及び重量構成比（％）",null,null,null,null,null,null,null,null,null,null,"乳成分の構成割合",null,null,null,"形状及び容器の形態","全乳換算係数","備考（任意記載）"]
[null,null,null,null,null,"製品重量",null,"全乳換算数量",null,null,null,null,null,null,null,null,"1位",null,null,"2位",null,null,"3位",null,null,"水分含量",null,"乳脂肪分",null,"無脂乳固形分"]
["①",{"$f":"IF(C5=\"\",\"\",\"一般_関税割当て\")","v":""},null,null,null,null,"kg",null,"kg",null,"kg",null,"kg",null,null,null,null,null,"％",null,null,"％",null,null,"％",null,"％",null,"％",null,"％"]
["②",{"$f":"IF(C6=\"\",\"\",\"一般_関税割当て\")","v":""},null,null,null,null,"kg",null,"kg",null,"kg",null,"kg",null,null,null,null,null,"％",null,null,"％",null,null,"％",null,"％",null,"％",null,"％"]
["③",{"$f":"IF(C7=\"\",\"\",\"一般_関税割当て\")","v":""},null,null,null,null,"kg",null,"kg",null,"kg",null,"kg",null,null,null,null,null,"％",null,null,"％",null,null,"％",null,"％",null,"％",null,"％"]
["④",{"$f":"IF(C8=\"\",\"\",\"一般_関税割当て\")","v":""},null,null,null,null,"kg",null,"kg",null,"kg",null,"kg",null,null,null,null,null,"％",null,null,"％",null,null,"％",null,"％",null,"％",null,"％"]
["⑤",{"$f":"IF(C9=\"\",\"\",\"一般_関税割当て\")","v":""},null,null,null,null,"kg",null,"kg",null,"kg",null,"kg",null,null,null,null,null,"％",null,null,"％",null,null,"％",null,"％",null,"％",null,"％"]
["⑥","",null,null,null,null,"kg",null,"kg",null,"kg",null,"kg",null,null,null,null,null,"％",null,null,"％",null,null,"％",null,"％",null,"％",null,"％"]
["⑦","",null,null,null,null,"kg",null,"kg",null,"kg",null,"kg",null,null,null,null,null,"％",null,null,"％",null,null,"％",null,"％",null,"％",null,"％"]
["⑧","",null,null,null,null,"kg",null,"kg",null,"kg",null,"kg",null,null,null,null,null,"％",null,null,"％",null,null,"％",null,"％",null,"％",null,"％"]
["⑨","",null,null,null,null,"kg",null,"kg",null,"kg",null,"kg",null,null,null,null,null,"％",null,null,"％",null,null,"％",null,"％",null,"％",null,"％"]
["⑩","",null,null,null,null,"kg",null,"kg",null,"kg",null,"kg",null,null,null,null,null,"％",null,null,"％",null,null,"％",null,"％",null,"％",null,"％"]
["⑪","",null,null,null,null,"kg",null,"kg",null,"kg",null,"kg",null,null,null,null,null,"％",null,null,"％",null,null,"％",null,"％",null,"％",null,"％"]
["⑫","",null,null,null,null,"kg",null,"kg",null,"kg",null,"kg",null,null,null,null,null,"％",null,null,"％",null,null,"％",null,"％",null,"％",null,"％"]
["⑬","",null,null,null,null,"kg",null,"kg",null,"kg",null,"kg",null,null,null,null,null,"％",null,null,"％",null,null,"％",null,"％",null,"％",null,"％"]
["⑭","",null,null,null,null,"kg",null,"kg",null,"kg",null,"kg",null,null,null,null,null,"％",null,null,"％",null,null,"％",null,"％",null,"％",null,"％"]
["⑮","",null,null,null,null,"kg",null,"kg",null,"kg",null,"kg",null,null,null,null,null,"％",null,null,"％",null,null,"％",null,"％",null,"％",null,"％"]
["⑯","",null,null,null,null,"kg",null,"kg",null,"kg",null,"kg",null,null,null,null,null,"％",null,null,"％",null,null,"％",null,"％",null,"％",null,"％"]
["⑰","",null,null,null,null,"kg",null,"kg",null,"kg",null,"kg",null,null,null,null,null,"％",null,null,"％",null,null,"％",null,"％",null,"％",null,"％"]
["⑱","",null,null,null,null,"kg",null,"kg",null,"kg",null,"kg",null,null,null,null,null,"％",null,null,"％",null,null,"％",null,"％",null,"％",null,"％"]
["⑲","",null,null,null,null,"kg",null,"kg",null,"kg",null,"kg",null,null,null,null,null,"％",null,null,"％",null,null,"％",null,"％",null,"％",null,"％"]
["⑳","",null,null,null,null,"kg",null,"kg",null,"kg",null,"kg",null,null,null,null,null,"％",null,null,"％",null,null,"％",null,"％",null,"％",null,"％"]

{"sheet":"申請書出力フォーム","index":2,"n_rows":25,"n_cols":13,"rows_kept":25,"cut":false,"hidden":false,"merged":[[21,10,22,10],[22,5,22,6],[22,7,22,8],[0,0,1,10],[4,7,6,8],[4,9,6,10],[7,7,8,8],[7,9,8,10],[10,4,10,8],[21,1,22,1],[21,2,22,2],[21,3,22,4],[21,5,21,8],[21,9,22,9]]}
["本シートは自動入力のため、直接入力は不要です。入力内容に誤りがないことを確認し、提出してくだい。"]
[]
[null,"様式第１"]
[null,null,null,null,null,null,null,null,null,null,null,null,"様式は省令で定められているため変更不可"]
[null,null,null,null,null,null,null,"根拠法規",null,"とうもろこし等の関税割当 制度に関する省令第１条",null,null,"セル結合はしない"]
[]
[]
[null,null,null,null,null,null,null,"主務官庁",null,"農林水産省"]
[]
[]
[null,null,null,null,"関税割当申請書"]
[]
[null,null,null,null,null,null,null,null,"※","受付番号"]
[null,null,null,null,null,null,null,null,"※","受付年月日"]
[]
[null,"申請者氏名（名称）",{"$f":"'様式第１（申請書　申請者情報) '!D3","v":0},null,null,null,null,null,null,"電話番号",{"$f":"'様式第１（申請書　申請者情報) '!D5","v":0}]
[null,"申請者住所",{"$f":"'様式第１（申請書　申請者情報) '!D4","v":0}]
[null,"代表者名",{"$f":"'様式第１（申請書　申請者情報) '!D6","v":0},null,null,null,null,null,null,"資格"]
[null,"申請年月日","令和",{"$f":"'様式第１（申請書　申請者情報) '!E7","v":0},"年",{"$f":"'様式第１（申請書　申請者情報) '!G7","v":0},"月",{"$f":"'様式第１（申請書　申請者情報) '!I7","v":0},"日"]
[]
[null,"申請の明細"]
[null,"関税率\n表番号","品名","数量及び単位",null,"実績",null,null,null,"主な使用の\n計画","備考"]
[null,null,null,null,null,"使用",null,"輸入"]
[null,null,null,{"$f":"IF(C25=\"「その他の乳製品」\",\"①製品重量\",\"\")","v":""}]
[null,null,null,null,"Kg",null,"Kg",null,"Kg"]

{"sheet":"プルダウンリスト (WTO)","index":3,"n_rows":26,"n_cols":13,"rows_kept":26,"cut":false,"hidden":true,"merged":[]}
[]
[]
[]
[null,"資格"]
[null,"第２の１"]
[null,"第２の２"]
[null,"第２の３"]
[null,"第２の４"]
[]
[null,"関税番号"]
[null,"ナチュラルチーズ","脱粉_配合飼料製造原料用","脱粉_沖縄還元乳製造原料用","脱粉_沖縄乳児等用調製粉乳製造原料用","脱粉_学校等給食用","無糖れん乳","無機質濃縮ホエイ","乳幼児用調製粉乳又は調製液状乳用ホエイ等","バター及びバターオイル_沖縄還元乳製造原料用","バター及びバターオイル_沖縄乳児等用調製粉乳製造原料用","バター及びバターオイル_国際線航空機用","バター及びバターオイル_外国見本市用"]
[null,"0406.10\n0406.40\n0406.90","0402.10\n0402.21\n0402.29","0402.10\n0402.21\n0402.29","0402.10\n0402.21\n0402.29","0402.10\n0402.21","0402.91","0404.10","0404.10\n0404.90","0405.10\n0405.90","0405.10\n0405.90","0405.10\n0405.90","0405.10\n0405.90"]
[]
[]
[]
[]
[]
[]
[]
[]
[null,"品目"]
[null,"関税割当公表第67号_ナチュラルチーズ","関税割当公表第73号_学校等給食用以外の脱脂粉乳","関税割当公表第74号_学校等給食用脱脂粉乳","関税割当公表第75号_無糖れん乳","関税割当公表第76号_無機質濃縮ホエイ","関税割当公表第78号_乳幼児用調製粉乳又は調製液状乳用ホエイ等","関税割当公表第79号_バター及びバターオイル"]
[null,"ナチュラルチーズ","脱粉_配合飼料製造原料用","脱粉_学校等給食用","無糖れん乳","無機質濃縮ホエイ","乳幼児用調製粉乳又は調製液状乳用ホエイ等","バター及びバターオイル_沖縄還元乳製造原料用"]
[null,null,"脱粉_沖縄還元乳製造原料用",null,null,null,null,"バター及びバターオイル_沖縄乳児等用調製粉乳製造原料用"]
[null,null,"脱粉_沖縄乳児等用調製粉乳製造原料用",null,null,null,null,"バター及びバターオイル_国際線航空機用"]
[null,null,null,null,null,null,null,"バター及びバターオイル_外国見本市用"]